[Event "*** Titled Tuesday 3|2 Blitz (Early)"]
[Site "Chess.com"]
[Date "2016.11.01"]
[Round "6"]
[White "KingFlorida"]
[Black "PowerThinking2650"]
[Result "0-1"]
[WhiteElo "2332"]
[BlackElo "2190"]
[TimeControl "180+2"]
[EndTime "12:21:10 PDT"]
[Termination "PowerThinking2650 won by checkmate"]

1. e4 {[%clk 0:03:00]} 1... e5 {[%clk 0:03:00.4]} 2. d3 {[%clk 0:02:52.7]} 2...
Nf6 {[%clk 0:02:56.9]} 3. Nf3 {[%clk 0:02:50]} 3... Nc6 {[%clk 0:02:57]} 4. Nbd2
{[%clk 0:02:50.9]} 4... d5 {[%clk 0:02:58.2]} 5. Be2 {[%clk 0:02:47.4]} 5... Bc5
{[%clk 0:02:59]} 6. O-O {[%clk 0:02:48]} 6... O-O {[%clk 0:02:59.6]} 7. c3
{[%clk 0:02:49.6]} 7... Re8 {[%clk 0:02:57.4]} 8. Qc2 {[%clk 0:02:46.9]} 8... a5
{[%clk 0:02:56.7]} 9. Re1 {[%clk 0:02:47.7]} 9... h6 {[%clk 0:02:54.7]} 10. Nf1
{[%clk 0:02:49.1]} 10... Bg4 {[%clk 0:02:48.2]} 11. Ng3 {[%clk 0:02:49.6]} 11...
dxe4 {[%clk 0:02:42.2]} 12. dxe4 {[%clk 0:02:40.7]} 12... Nh5 {[%clk 0:02:39.1]}
13. Nxh5 {[%clk 0:01:26.3]} 13... Bxh5 {[%clk 0:02:37.6]} 14. a4 {[%clk
0:01:28]} 14... Qf6 {[%clk 0:02:33.1]} 15. h3 {[%clk 0:01:23.4]} 15... Rad8
{[%clk 0:02:31.5]} 16. Bd2 {[%clk 0:00:46.4]} 16... Rd6 {[%clk 0:02:30.6]} 17.
Rad1 {[%clk 0:00:48]} 17... Red8 {[%clk 0:02:31]} 18. Bc1 {[%clk 0:00:49.6]}
18... Bg6 {[%clk 0:02:13.2]} 19. Rxd6 {[%clk 0:00:37.9]} 19... Rxd6 {[%clk
0:02:12]} 20. Bc4 {[%clk 0:00:33.9]} 20... Nd8 {[%clk 0:02:00.8]} 21. Nh2 {[%clk
0:00:27.6]} 21... Bh5 {[%clk 0:01:46]} 22. Nf1 {[%clk 0:00:08.2]} 22... Ne6
{[%clk 0:01:40.6]} 23. Be3 {[%clk 0:00:07.3]} 23... Bxe3 {[%clk 0:01:32.1]} 24.
Nxe3 {[%clk 0:00:09.2]} 24... Nf4 {[%clk 0:01:33.5]} 25. Bf1 {[%clk 0:00:10.6]}
25... c6 {[%clk 0:01:32.9]} 26. g3 {[%clk 0:00:11.5]} 26... Ne6 {[%clk
0:01:24.3]} 27. Nf5 {[%clk 0:00:09]} 27... Rd7 {[%clk 0:01:19.2]} 28. Be2 {[%clk
0:00:06.4]} 28... Bg6 {[%clk 0:01:13]} 29. Ne3 {[%clk 0:00:07.5]} 29... Nc5
{[%clk 0:01:09.9]} 30. f3 {[%clk 0:00:07.8]} 30... Qg5 {[%clk 0:01:07.2]} 31.
Kf2 {[%clk 0:00:08]} 31... h5 {[%clk 0:01:08.5]} 32. h4 {[%clk 0:00:09.3]} 32...
Qf6 {[%clk 0:01:02.4]} 33. Kg2 {[%clk 0:00:08.2]} 33... Qd8 {[%clk 0:00:50.1]}
34. Rd1 {[%clk 0:00:08.2]} 34... f6 {[%clk 0:00:49.9]} 35. Rxd7 {[%clk 0:00:08]}
35... Qxd7 {[%clk 0:00:50.7]} 36. b4 {[%clk 0:00:08.9]} 36... axb4 {[%clk
0:00:47.6]} 37. cxb4 {[%clk 0:00:10.8]} 37... Ne6 {[%clk 0:00:47.1]} 38. Bc4
{[%clk 0:00:12.4]} 38... Bf7 {[%clk 0:00:47.9]} 39. Bxe6 {[%clk 0:00:12.5]}
39... Bxe6 {[%clk 0:00:49.3]} 40. Qd1 {[%clk 0:00:10.6]} 40... Qe7 {[%clk
0:00:39.8]} 41. Qd2 {[%clk 0:00:10.9]} 41... g6 {[%clk 0:00:34.1]} 42. a5 {[%clk
0:00:10.7]} 42... Kf7 {[%clk 0:00:32]} 43. Kf2 {[%clk 0:00:10.8]} 43... Qc7
{[%clk 0:00:26.9]} 44. Nd1 {[%clk 0:00:09.8]} 44... Kg7 {[%clk 0:00:20.8]} 45.
Nc3 {[%clk 0:00:10.2]} 45... c5 {[%clk 0:00:20.2]} 46. Nb5 {[%clk 0:00:07.6]}
46... Qc6 {[%clk 0:00:18.7]} 47. Nd6 {[%clk 0:00:08.1]} 47... c4 {[%clk
0:00:13.6]} 48. b5 {[%clk 0:00:06.5]} 48... Qc5+ {[%clk 0:00:11.3]} 49. Kg2
{[%clk 0:00:07.3]} 49... c3 {[%clk 0:00:12.2]} 50. Ne8+ {[%clk 0:00:08.6]} 50...
Kf7 {[%clk 0:00:09.7]} 51. Qd8 {[%clk 0:00:10.5]} 51... c2 {[%clk 0:00:05]} 52.
Qxf6+ {[%clk 0:00:11.6]} 52... Kxe8 {[%clk 0:00:05]} 53. Qxe6+ {[%clk
0:00:13.5]} 53... Kd8 {[%clk 0:00:04.3]} 54. Qg8+ {[%clk 0:00:14.7]} 54... Kc7
{[%clk 0:00:04]} 55. Qf7+ {[%clk 0:00:15.2]} 55... Kb8 {[%clk 0:00:04.8]} 56.
Qe8+ {[%clk 0:00:11.5]} 56... Qc8 {[%clk 0:00:05.6]} 57. Qxe5+ {[%clk
0:00:12.6]} 57... Ka8 {[%clk 0:00:06.9]} 58. a6 {[%clk 0:00:07.4]} 58... c1=Q
{[%clk 0:00:07.9]} 59. axb7+ {[%clk 0:00:09]} 59... Kxb7 {[%clk 0:00:09.3]} 60.
Qd5+ {[%clk 0:00:08.6]} 60... Kb6 {[%clk 0:00:10.5]} 61. Qd6+ {[%clk 0:00:09.7]}
61... Kxb5 {[%clk 0:00:11.9]} 62. Qd5+ {[%clk 0:00:10.1]} 62... Kb4 {[%clk
0:00:13]} 63. Qd4+ {[%clk 0:00:11.1]} 63... Kb3 {[%clk 0:00:14.2]} 64. Qb6+
{[%clk 0:00:12.7]} 64... Kc2 {[%clk 0:00:14.9]} 65. Qxg6 {[%clk 0:00:07.7]}
65... Qd2+ {[%clk 0:00:15]} 66. Kg1 {[%clk 0:00:09.3]} 66... Qc5+ {[%clk
0:00:15.5]} 67. Kh1 {[%clk 0:00:10.6]} 67... Qd1+ {[%clk 0:00:16.5]} 68. Kh2
{[%clk 0:00:12.2]} 68... Qf2+ {[%clk 0:00:15.4]} 69. Kh3 {[%clk 0:00:13.4]}
69... Qh1# {[%clk 0:00:16.3]} 0-1

[Event "*** Titled Tuesday 3|2 Blitz (Early)"]
[Site "Chess.com"]
[Date "2016.11.01"]
[Round "6"]
[White "DanielNaroditsky"]
[Black "FairChess_on_YouTube"]
[Result "1/2-1/2"]
[WhiteElo "2742"]
[BlackElo "2735"]
[TimeControl "180+2"]
[EndTime "12:21:31 PDT"]
[Termination "Game drawn - insufficient material"]

1. d4 {[%clk 0:03:02]} 1... d5 {[%clk 0:03:01.2]} 2. Bf4 {[%clk 0:03:02.7]} 2...
Nf6 {[%clk 0:02:59.4]} 3. e3 {[%clk 0:03:03.8]} 3... c5 {[%clk 0:03:00.4]} 4.
dxc5 {[%clk 0:03:05.7]} 4... Nc6 {[%clk 0:02:59.7]} 5. Bb5 {[%clk 0:03:07.1]}
5... g6 {[%clk 0:02:57.4]} 6. Nf3 {[%clk 0:03:00.4]} 6... Bg7 {[%clk 0:02:58.5]}
7. Nc3 {[%clk 0:02:55.3]} 7... O-O {[%clk 0:02:58.9]} 8. O-O {[%clk 0:02:54.7]}
8... Bg4 {[%clk 0:02:59.2]} 9. Bxc6 {[%clk 0:02:54.7]} 9... bxc6 {[%clk
0:02:59.9]} 10. Be5 {[%clk 0:02:55.1]} 10... Bxf3 {[%clk 0:02:22.4]} 11. Qxf3
{[%clk 0:02:35.7]} 11... Qa5 {[%clk 0:02:18.5]} 12. e4 {[%clk 0:02:26.9]} 12...
Qxc5 {[%clk 0:02:07.3]} 13. exd5 {[%clk 0:02:21.3]} 13... Nxd5 {[%clk
0:02:06.3]} 14. Bxg7 {[%clk 0:02:21.1]} 14... Kxg7 {[%clk 0:02:08.2]} 15. Nxd5
{[%clk 0:01:57]} 15... cxd5 {[%clk 0:02:09.5]} 16. c3 {[%clk 0:01:56.6]} 16...
Rab8 {[%clk 0:02:05.6]} 17. Qe2 {[%clk 0:01:55.1]} 17... e6 {[%clk 0:02:05.1]}
18. Rad1 {[%clk 0:01:55.4]} 18... Qb5 {[%clk 0:01:48.1]} 19. Qe5+ {[%clk
0:01:55]} 19... Kg8 {[%clk 0:01:48.6]} 20. Rd2 {[%clk 0:01:53.6]} 20... Qc4
{[%clk 0:01:40.5]} 21. b3 {[%clk 0:01:52.8]} 21... Qg4 {[%clk 0:01:33.7]} 22.
Rd4 {[%clk 0:01:48.2]} 22... Qf5 {[%clk 0:01:34.5]} 23. Qxf5 {[%clk 0:01:47.3]}
23... gxf5 {[%clk 0:01:35.3]} 24. c4 {[%clk 0:01:41.4]} 24... Rb4 {[%clk
0:01:23.1]} 25. Rc1 {[%clk 0:01:42.3]} 25... Rc8 {[%clk 0:01:17.4]} 26. Kf1
{[%clk 0:01:25.1]} 26... a5 {[%clk 0:01:17.9]} 27. Ke2 {[%clk 0:01:22.2]} 27...
Rb7 {[%clk 0:00:57.4]} 28. Rc3 {[%clk 0:01:14.6]} 28... a4 {[%clk 0:00:53.9]}
29. Rg3+ {[%clk 0:01:13.4]} 29... Kf8 {[%clk 0:00:52.5]} 30. cxd5 {[%clk
0:01:15.3]} 30... Rc2+ {[%clk 0:00:50.8]} 31. Rd2 {[%clk 0:01:15.8]} 31... Rxd2+
{[%clk 0:00:47.7]} 32. Kxd2 {[%clk 0:01:17.7]} 32... axb3 {[%clk 0:00:48.4]} 33.
axb3 {[%clk 0:01:00.4]} 33... exd5 {[%clk 0:00:48.4]} 34. Rf3 {[%clk 0:00:58.2]}
34... Ke7 {[%clk 0:00:48.1]} 35. Rxf5 {[%clk 0:00:59.1]} 35... Rxb3 {[%clk
0:00:45.6]} 36. Rxd5 {[%clk 0:00:59.7]} 36... Kf6 {[%clk 0:00:44.7]} 37. Rd3
{[%clk 0:00:59.6]} 37... Rb2+ {[%clk 0:00:45.3]} 38. Ke3 {[%clk 0:01:00.5]}
38... h6 {[%clk 0:00:45.8]} 39. Kf3 {[%clk 0:01:01.4]} 39... Kg7 {[%clk
0:00:46.4]} 40. h4 {[%clk 0:01:01.4]} 40... Rb4 {[%clk 0:00:47.3]} 41. g3 {[%clk
0:01:01.3]} 41... Rb6 {[%clk 0:00:48.9]} 42. Kg2 {[%clk 0:01:01.7]} 42... Rb5
{[%clk 0:00:50.1]} 43. Rf3 {[%clk 0:01:03.6]} 43... Rb6 {[%clk 0:00:51]} 44. Rf5
{[%clk 0:01:04.3]} 44... Rb4 {[%clk 0:00:51.9]} 45. Rf3 {[%clk 0:01:04.9]} 45...
Rb5 {[%clk 0:00:53]} 46. Rf4 {[%clk 0:01:06.1]} 46... h5 {[%clk 0:00:52]} 47.
Rf3 {[%clk 0:01:05.1]} 47... Kg6 {[%clk 0:00:53]} 48. Re3 {[%clk 0:01:06.3]}
48... Rb4 {[%clk 0:00:52.7]} 49. Kf3 {[%clk 0:01:07]} 49... Rb8 {[%clk
0:00:53.2]} 50. Re5 {[%clk 0:01:06.9]} 50... f6 {[%clk 0:00:53.8]} 51. Re3
{[%clk 0:01:07.8]} 51... Ra8 {[%clk 0:00:55.1]} 52. Kg2 {[%clk 0:01:08.6]} 52...
Rb8 {[%clk 0:00:56.5]} 53. Rf3 {[%clk 0:01:08.8]} 53... Ra8 {[%clk 0:00:57.9]}
54. Rb3 {[%clk 0:01:09.1]} 54... Rc8 {[%clk 0:00:58.8]} 55. Rf3 {[%clk
0:01:09.6]} 55... Rb8 {[%clk 0:01:00]} 56. Rf4 {[%clk 0:01:10.4]} 56... Ra8
{[%clk 0:01:01.1]} 57. Rc4 {[%clk 0:01:08]} 57... Rb8 {[%clk 0:01:02.3]} 58. g4
{[%clk 0:00:59.9]} 58... hxg4 {[%clk 0:01:02.7]} 59. Rxg4+ {[%clk 0:01:01.8]}
59... Kh5 {[%clk 0:01:01.7]} 60. Rf4 {[%clk 0:01:02]} 60... Rb6 {[%clk
0:01:01.2]} 61. Kg3 {[%clk 0:01:00.8]} 61... Rb3+ {[%clk 0:00:59.9]} 62. f3
{[%clk 0:00:59.7]} 62... Rb6 {[%clk 0:00:59.5]} 63. Rf5+ {[%clk 0:00:59.2]}
63... Kg6 {[%clk 0:01:00.4]} 64. Kg4 {[%clk 0:00:59.5]} 64... Rb4+ {[%clk
0:01:01.2]} 65. f4 {[%clk 0:01:00.1]} 65... Rb1 {[%clk 0:01:01.6]} 66. h5+
{[%clk 0:01:00.8]} 66... Kg7 {[%clk 0:00:58.6]} 67. Ra5 {[%clk 0:01:01.3]} 67...
Rb7 {[%clk 0:00:56]} 68. Kf5 {[%clk 0:01:00.3]} 68... Rc7 {[%clk 0:00:54.9]} 69.
Rb5 {[%clk 0:00:59.4]} 69... Ra7 {[%clk 0:00:52.8]} 70. Rd5 {[%clk 0:00:55.8]}
70... Rb7 {[%clk 0:00:53.3]} 71. Ke6 {[%clk 0:00:56]} 71... Rb4 {[%clk
0:00:45.1]} 72. Rd7+ {[%clk 0:00:52.5]} 72... Kh6 {[%clk 0:00:46.2]} 73. f5
{[%clk 0:00:48.6]} 73... Rb6+ {[%clk 0:00:31.9]} 74. Rd6 {[%clk 0:00:48.4]}
74... Rb7 {[%clk 0:00:20]} 75. Kxf6 {[%clk 0:00:48.7]} 75... Kxh5 {[%clk
0:00:21.7]} 76. Re6 {[%clk 0:00:29.7]} 76... Ra7 {[%clk 0:00:22.8]} 77. Re1
{[%clk 0:00:28.2]} 77... Ra6+ {[%clk 0:00:21.7]} 78. Re6 {[%clk 0:00:28.8]}
78... Ra7 {[%clk 0:00:22.3]} 79. Rd6 {[%clk 0:00:26.5]} 79... Rb7 {[%clk
0:00:22.9]} 80. Ke6 {[%clk 0:00:27.2]} 80... Kg5 {[%clk 0:00:22]} 81. f6 {[%clk
0:00:24.2]} 81... Kg6 {[%clk 0:00:22.5]} 82. Rd1 {[%clk 0:00:21.4]} 82... Rb6+
{[%clk 0:00:22.5]} 83. Ke7 {[%clk 0:00:22.1]} 83... Rb7+ {[%clk 0:00:23.6]} 84.
Ke6 {[%clk 0:00:23]} 84... Rb6+ {[%clk 0:00:25]} 85. Rd6 {[%clk 0:00:23]} 85...
Rxd6+ {[%clk 0:00:25.8]} 86. Kxd6 {[%clk 0:00:24.9]} 86... Kxf6 {[%clk
0:00:27.2]} 1/2-1/2

[Event "*** Titled Tuesday 3|2 Blitz (Early)"]
[Site "Chess.com"]
[Date "2016.11.01"]
[Round "6"]
[White "Gabrielian_Artur"]
[Black "RodinMihail"]
[Result "1-0"]
[WhiteElo "2573"]
[BlackElo "2433"]
[TimeControl "180+2"]
[EndTime "12:22:07 PDT"]
[Termination "Gabrielian_Artur won by resignation"]

1. e4 {[%clk 0:03:00.7]} 1... e5 {[%clk 0:02:59.9]} 2. Nf3 {[%clk 0:03:01.6]}
2... Nc6 {[%clk 0:03:01.3]} 3. Bc4 {[%clk 0:03:02.3]} 3... Bc5 {[%clk
0:03:01.5]} 4. d3 {[%clk 0:03:00.1]} 4... Nf6 {[%clk 0:03:02.6]} 5. O-O {[%clk
0:03:00.8]} 5... a6 {[%clk 0:03:02.8]} 6. a4 {[%clk 0:02:59.3]} 6... h6 {[%clk
0:03:01.7]} 7. c3 {[%clk 0:02:59.8]} 7... Ba7 {[%clk 0:03:02.3]} 8. Re1 {[%clk
0:02:58.2]} 8... O-O {[%clk 0:03:03]} 9. Nbd2 {[%clk 0:02:58.8]} 9... d6 {[%clk
0:02:48.7]} 10. a5 {[%clk 0:02:56.5]} 10... Kh8 {[%clk 0:02:36.9]} 11. b4 {[%clk
0:02:54]} 11... Ng4 {[%clk 0:02:37]} 12. Re2 {[%clk 0:02:51]} 12... f5 {[%clk
0:02:36.6]} 13. h3 {[%clk 0:02:39.6]} 13... Nf6 {[%clk 0:02:37]} 14. Nh4 {[%clk
0:02:36.3]} 14... Kh7 {[%clk 0:02:18.8]} 15. Nxf5 {[%clk 0:02:26.4]} 15... d5
{[%clk 0:02:08.4]} 16. Bb3 {[%clk 0:02:27.3]} 16... dxe4 {[%clk 0:02:05.9]} 17.
dxe4 {[%clk 0:02:27.9]} 17... Nxe4 {[%clk 0:02:06.5]} 18. Nxe4 {[%clk
0:02:23.7]} 18... Qxd1+ {[%clk 0:02:00.8]} 19. Bxd1 {[%clk 0:02:24.3]} 19...
Bxf5 {[%clk 0:02:02.5]} 20. Bc2 {[%clk 0:02:24.7]} 20... Kh8 {[%clk 0:01:58.8]}
21. Be3 {[%clk 0:02:24.8]} 21... Bxe3 {[%clk 0:01:57.2]} 22. Rxe3 {[%clk
0:02:24.2]} 22... Rad8 {[%clk 0:01:58.1]} 23. Rc1 {[%clk 0:02:17]} 23... b6
{[%clk 0:01:33.6]} 24. axb6 {[%clk 0:02:16.7]} 24... cxb6 {[%clk 0:01:35.5]} 25.
Ba4 {[%clk 0:02:17.6]} 25... Ne7 {[%clk 0:01:33.3]} 26. Ng3 {[%clk 0:02:16.6]}
26... b5 {[%clk 0:01:07.1]} 27. Bb3 {[%clk 0:02:14.3]} 27... Ng6 {[%clk
0:00:56.9]} 28. Nxf5 {[%clk 0:02:14.9]} 28... Rxf5 {[%clk 0:00:58.8]} 29. Bc2
{[%clk 0:01:50.9]} 29... Rf6 {[%clk 0:00:59.7]} 30. g3 {[%clk 0:01:37.8]} 30...
Rd2 {[%clk 0:00:57.1]} 31. Bxg6 {[%clk 0:01:33.4]} 31... Rxg6 {[%clk 0:00:59]}
32. Rxe5 {[%clk 0:01:33.7]} 32... Rf6 {[%clk 0:01:00.2]} 33. Rf1 {[%clk
0:01:28.5]} 33... Rf3 {[%clk 0:00:56.9]} 34. Rc5 {[%clk 0:01:02.4]} 34... Rc2
{[%clk 0:00:57.9]} 35. Rc6 {[%clk 0:01:03.6]} 35... Rfxc3 {[%clk 0:00:58.1]} 36.
Rxa6 {[%clk 0:01:04.4]} 36... Rb2 {[%clk 0:00:59.3]} 37. Re1 {[%clk 0:01:04.6]}
37... Rcc2 {[%clk 0:00:56.7]} 38. Ra8+ {[%clk 0:01:02.6]} 38... Kh7 {[%clk
0:00:57]} 39. Rf8 {[%clk 0:01:03.5]} 39... Rxb4 {[%clk 0:00:57.8]} 40. Re7
{[%clk 0:01:04.6]} 40... Rc6 {[%clk 0:00:54.9]} 41. Kg2 {[%clk 0:00:59.9]} 41...
Rb2 {[%clk 0:00:53.7]} 42. Rff7 {[%clk 0:00:59.6]} 42... Rg6 {[%clk 0:00:54.5]}
43. h4 {[%clk 0:01:00.2]} 43... Kg8 {[%clk 0:00:38.8]} 44. Kh3 {[%clk
0:00:50.5]} 44... b4 {[%clk 0:00:35.6]} 45. h5 {[%clk 0:00:50.8]} 45... Rf6
{[%clk 0:00:36.5]} 46. Rxg7+ {[%clk 0:00:43.7]} 46... Kf8 {[%clk 0:00:34.6]} 47.
f4 {[%clk 0:00:42.9]} 47... Rb1 {[%clk 0:00:30]} 48. Rb7 {[%clk 0:00:38.8]}
48... b3 {[%clk 0:00:24.3]} 49. Rh7 {[%clk 0:00:36.8]} 49... Kg8 {[%clk
0:00:25.1]} 50. Rhg7+ {[%clk 0:00:37.8]} 50... Kf8 {[%clk 0:00:25.3]} 51. Rgc7
{[%clk 0:00:38.9]} 51... Kg8 {[%clk 0:00:26.4]} 52. Kg4 {[%clk 0:00:34.4]} 52...
b2 {[%clk 0:00:26.4]} 53. Rc8+ {[%clk 0:00:26.5]} 53... Rf8 {[%clk 0:00:25.5]}
54. Rcc7 {[%clk 0:00:19.8]} 54... Rf6 {[%clk 0:00:25.3]} 55. Rc2 {[%clk
0:00:16.9]} 55... Rf7 {[%clk 0:00:21]} 56. Rbxb2 {[%clk 0:00:16.3]} 56... Rg1
{[%clk 0:00:21.9]} 57. Kf3 {[%clk 0:00:17.1]} 57... Rg7 {[%clk 0:00:22.1]} 58.
Rg2 {[%clk 0:00:15.6]} 58... Rh1 {[%clk 0:00:22.9]} 59. g4 {[%clk 0:00:14.6]}
59... Rh3+ {[%clk 0:00:23.8]} 60. Rg3 {[%clk 0:00:16]} 60... Rh1 {[%clk
0:00:25.5]} 61. Kg2 {[%clk 0:00:15.4]} 61... Rd1 {[%clk 0:00:25.9]} 62. Rf2
{[%clk 0:00:15.9]} 62... Rd5 {[%clk 0:00:25]} 63. Kh3 {[%clk 0:00:16.7]} 63...
Rf7 {[%clk 0:00:25.5]} 64. Rgg2 {[%clk 0:00:17]} 64... Rd3+ {[%clk 0:00:25.5]}
65. Kh4 {[%clk 0:00:17.7]} 65... Rd4 {[%clk 0:00:26.7]} 66. Kg3 {[%clk 0:00:19]}
66... Rd3+ {[%clk 0:00:27.8]} 67. Rf3 {[%clk 0:00:20.5]} 67... Rd4 {[%clk
0:00:29.1]} 68. g5 {[%clk 0:00:20.5]} 68... hxg5 {[%clk 0:00:29.6]} 69. fxg5
{[%clk 0:00:21.8]} 69... Rg7 {[%clk 0:00:30.9]} 70. g6 {[%clk 0:00:22.7]} 70...
Rd5 {[%clk 0:00:30.5]} 71. Rgf2 {[%clk 0:00:21.9]} 71... Rd8 {[%clk 0:00:30.8]}
72. Kg4 {[%clk 0:00:22.5]} 72... Rd4+ {[%clk 0:00:31.3]} 73. Rf4 {[%clk
0:00:23.6]} 73... Rd8 {[%clk 0:00:31.3]} 74. Kg5 {[%clk 0:00:24.9]} 74... Rb7
{[%clk 0:00:32.1]} 75. h6 {[%clk 0:00:26.3]} 75... Rb5+ {[%clk 0:00:33]} 76. Rf5
{[%clk 0:00:27.8]} 76... Rb7 {[%clk 0:00:32.6]} 77. h7+ {[%clk 0:00:28.3]} 77...
Kg7 {[%clk 0:00:31.6]} 78. Rf7+ {[%clk 0:00:29.2]} 78... Rxf7 {[%clk 0:00:32.7]}
79. Rxf7+ {[%clk 0:00:30.2]} 79... Kh8 {[%clk 0:00:34.6]} 80. Kh6 {[%clk
0:00:31.6]} 80... Rg8 {[%clk 0:00:32.9]} 81. hxg8=Q+ {[%clk 0:00:32.3]} 1-0

[Event "*** Titled Tuesday 3|2 Blitz (Early)"]
[Site "Chess.com"]
[Date "2016.11.01"]
[Round "6"]
[White "GeorgMeier"]
[Black "fastestmindalive"]
[Result "1-0"]
[WhiteElo "2706"]
[BlackElo "2517"]
[TimeControl "180+2"]
[EndTime "12:22:29 PDT"]
[Termination "GeorgMeier won by checkmate"]

1. Nf3 {[%clk 0:03:02]} 1... Nf6 {[%clk 0:03:00.5]} 2. g3 {[%clk 0:03:03.2]}
2... b5 {[%clk 0:02:39.5]} 3. Bg2 {[%clk 0:03:04.3]} 3... Bb7 {[%clk 0:02:40.6]}
4. O-O {[%clk 0:03:05]} 4... e6 {[%clk 0:02:41.7]} 5. d3 {[%clk 0:03:05.9]} 5...
Be7 {[%clk 0:02:42.7]} 6. e4 {[%clk 0:03:06.8]} 6... d5 {[%clk 0:02:41.1]} 7. e5
{[%clk 0:03:03.8]} 7... Nfd7 {[%clk 0:02:42.2]} 8. Re1 {[%clk 0:03:03.8]} 8...
c5 {[%clk 0:02:41.9]} 9. Bf4 {[%clk 0:03:03.5]} 9... Nc6 {[%clk 0:02:42.9]} 10.
h4 {[%clk 0:03:04.6]} 10... a5 {[%clk 0:02:42.2]} 11. Nbd2 {[%clk 0:03:05.6]}
11... a4 {[%clk 0:02:43.1]} 12. Nf1 {[%clk 0:03:03.8]} 12... a3 {[%clk
0:02:43.7]} 13. b3 {[%clk 0:03:04.7]} 13... Qb6 {[%clk 0:02:41.4]} 14. Ne3
{[%clk 0:02:58.3]} 14... Nd4 {[%clk 0:02:42.1]} 15. Nxd4 {[%clk 0:02:54.4]}
15... cxd4 {[%clk 0:02:42.2]} 16. Nf1 {[%clk 0:02:56.1]} 16... Rc8 {[%clk
0:02:40.1]} 17. Nh2 {[%clk 0:02:56.7]} 17... Bb4 {[%clk 0:02:23.8]} 18. Re2
{[%clk 0:02:53.4]} 18... Bc3 {[%clk 0:02:24.9]} 19. Rb1 {[%clk 0:02:51.8]} 19...
Kd8 {[%clk 0:02:23.4]} 20. Nf3 {[%clk 0:02:47.1]} 20... h6 {[%clk 0:02:23.3]}
21. b4 {[%clk 0:02:44.1]} 21... Ra8 {[%clk 0:02:20.1]} 22. Rb3 {[%clk
0:02:42.8]} 22... Ra4 {[%clk 0:02:19.6]} 23. Qb1 {[%clk 0:02:43.5]} 23... Kc7
{[%clk 0:02:18.4]} 24. Bd2 {[%clk 0:02:37.2]} 24... Bxd2 {[%clk 0:02:15]} 25.
Nxd2 {[%clk 0:02:29.7]} 25... Nb8 {[%clk 0:02:12.4]} 26. Qc1 {[%clk 0:02:05.7]}
26... Nc6 {[%clk 0:02:11.5]} 27. Rxa3 {[%clk 0:02:06.6]} 27... Rxa3 {[%clk
0:02:09.2]} 28. Qxa3 {[%clk 0:02:07.2]} 28... Ra8 {[%clk 0:02:10.7]} 29. Qc1
{[%clk 0:01:56.4]} 29... Rxa2 {[%clk 0:02:04.9]} 30. Nb3 {[%clk 0:01:55.3]}
30... Kb8 {[%clk 0:01:56.3]} 31. Qf4 {[%clk 0:01:56.3]} 31... Qc7 {[%clk
0:01:54.5]} 32. Bf3 {[%clk 0:01:35.5]} 32... Bc8 {[%clk 0:01:01.9]} 33. Kg2
{[%clk 0:01:22.5]} 33... Bb7 {[%clk 0:00:59.6]} 34. h5 {[%clk 0:01:08.3]} 34...
Nxb4 {[%clk 0:00:34.6]} 35. Nxd4 {[%clk 0:01:08.7]} 35... Nxc2 {[%clk
0:00:34.3]} 36. Nxc2 {[%clk 0:00:22.3]} 36... Rxc2 {[%clk 0:00:34.7]} 37. Rxc2
{[%clk 0:00:23.5]} 37... Qxc2 {[%clk 0:00:36.6]} 38. Qxf7 {[%clk 0:00:25.2]}
38... Bc8 {[%clk 0:00:23.5]} 39. Qxg7 {[%clk 0:00:13.4]} 39... b4 {[%clk
0:00:19.4]} 40. Qf8 {[%clk 0:00:14.7]} 40... b3 {[%clk 0:00:17]} 41. Qd6+ {[%clk
0:00:14.6]} 41... Ka8 {[%clk 0:00:04.1]} 42. Qa3+ {[%clk 0:00:14.8]} 42... Kb8
{[%clk 0:00:04.8]} 43. Qb4+ {[%clk 0:00:15.6]} 43... Bb7 {[%clk 0:00:04.1]} 44.
Qf8+ {[%clk 0:00:13.3]} 44... Ka7 {[%clk 0:00:04.9]} 45. Qa3+ {[%clk 0:00:13.5]}
45... Ba6 {[%clk 0:00:04.7]} 46. Qa4 {[%clk 0:00:10.1]} 46... Qc3 {[%clk
0:00:04.2]} 47. Qa3 {[%clk 0:00:05.6]} 47... Qc2 {[%clk 0:00:05.2]} 48. Qa4
{[%clk 0:00:05.1]} 48... Qxd3 {[%clk 0:00:06.4]} 49. Qd7+ {[%clk 0:00:03.9]}
49... Kb8 {[%clk 0:00:06.7]} 50. Qxe6 {[%clk 0:00:03.1]} 50... Qf1+ {[%clk
0:00:07.4]} 51. Kh2 {[%clk 0:00:04.4]} 51... Qxf2+ {[%clk 0:00:08.4]} 52. Bg2
{[%clk 0:00:05.7]} 52... Bf1 {[%clk 0:00:09.2]} 53. Qd6+ {[%clk 0:00:05]} 53...
Ka7 {[%clk 0:00:10.2]} 54. Qa3+ {[%clk 0:00:04.3]} 54... Ba6 {[%clk 0:00:08]}
55. Qxb3 {[%clk 0:00:05.4]} 55... d4 {[%clk 0:00:08.1]} 56. e6 {[%clk
0:00:04.6]} 56... Qe2 {[%clk 0:00:08.8]} 57. Qd5 {[%clk 0:00:03.3]} 57... d3
{[%clk 0:00:07.9]} 58. Qc5+ {[%clk 0:00:04.1]} 58... Kb8 {[%clk 0:00:05.9]} 59.
Qb6+ {[%clk 0:00:05.1]} 59... Kc8 {[%clk 0:00:07.1]} 60. Qxa6+ {[%clk
0:00:06.1]} 60... Kc7 {[%clk 0:00:08.6]} 61. e7 {[%clk 0:00:04]} 61... Qxh5+
{[%clk 0:00:08.6]} 62. Kg1 {[%clk 0:00:05.3]} 62... Qd1+ {[%clk 0:00:09.6]} 63.
Bf1 {[%clk 0:00:06.7]} 63... Qe1 {[%clk 0:00:09.2]} 64. Qc4+ {[%clk 0:00:07]}
64... Kd7 {[%clk 0:00:10.1]} 65. Qxd3+ {[%clk 0:00:07.9]} 65... Kxe7 {[%clk
0:00:11.5]} 66. Qf3 {[%clk 0:00:09]} 66... Qc1 {[%clk 0:00:09.2]} 67. Kg2 {[%clk
0:00:09.6]} 67... Qg5 {[%clk 0:00:05.1]} 68. Be2 {[%clk 0:00:08.2]} 68... Qc1
{[%clk 0:00:03]} 69. Qf4 {[%clk 0:00:08.2]} 69... Qc6+ {[%clk 0:00:03.6]} 70.
Bf3 {[%clk 0:00:09]} 70... Qc2+ {[%clk 0:00:05.1]} 71. Kh3 {[%clk 0:00:08.5]}
71... Qc8+ {[%clk 0:00:05.9]} 72. Kh4 {[%clk 0:00:09.3]} 72... Qh8 {[%clk
0:00:06.3]} 73. Bh5 {[%clk 0:00:09.7]} 73... Ke6 {[%clk 0:00:06]} 74. Bg6 {[%clk
0:00:08.8]} 74... Qg7 {[%clk 0:00:05.3]} 75. Kh5 {[%clk 0:00:09]} 75... Ke7
{[%clk 0:00:04]} 76. Qxh6 {[%clk 0:00:06.3]} 76... Qa1 {[%clk 0:00:03.7]} 77.
Qg5+ {[%clk 0:00:07.4]} 77... Kf8 {[%clk 0:00:04.3]} 78. Qf4+ {[%clk 0:00:07.8]}
78... Ke7 {[%clk 0:00:03.9]} 79. Qf7+ {[%clk 0:00:08.6]} 79... Kd6 {[%clk
0:00:05.2]} 80. Be4 {[%clk 0:00:08.2]} 80... Qd1+ {[%clk 0:00:04.7]} 81. Qf3
{[%clk 0:00:08.2]} 81... Qg1 {[%clk 0:00:05.3]} 82. Qf4+ {[%clk 0:00:08.8]}
82... Ke7 {[%clk 0:00:06.2]} 83. g4 {[%clk 0:00:09.8]} 83... Qe1 {[%clk
0:00:04.9]} 84. g5 {[%clk 0:00:09.5]} 84... Qe2+ {[%clk 0:00:05]} 85. Kg6 {[%clk
0:00:10.6]} 85... Qa2 {[%clk 0:00:04.2]} 86. Qf6+ {[%clk 0:00:11.4]} 86... Ke8
{[%clk 0:00:03.1]} 87. Bc6# {[%clk 0:00:11]} 1-0